[Event "Turkish Club Cup 2019"]
[Site "Konya"]
[Date "2019.07.16"]
[Round "1"]
[White "Aksu, Savas"]
[Black "Guder, Eyup Sabri"]
[Result "0-1"]
[ECO "B45"]
[WhiteElo "1638"]
[BlackElo "1909"]
[Annotator "NA"]
[PlyCount "116"]
[EventDate "2019.07.16"]
[EventType "team-tourn"]
[EventCountry "TUR"]
[SourceTitle "playchess.com"]
[Source "ChessBase"]
[SourceQuality "1"]
[TimeControl "5400+30"]

1. e4 {[%emt 0:00:30]} c5 {[%emt 0:00:30]} 2. Nf3 {[%emt 0:07:30]} e6 {[%emt 0:00:30]} 3. d4 {[%emt 0:01:30]} cxd4 {[%emt 0:00:30]} 4. Nxd4 {[%emt 0:00:30]} Nf6 {[%emt 0:00:30]} 5. Nc3 {[%emt 0:00:30]} Nc6 {[%emt 0:00:30]} 6. a3 {[%emt 0:00:30]} d5 {[%emt 0:00:30]} 7. Bb5 {[%emt 0:04:30]} Bd7 {[%emt 0:00:30]} 8. Bg5 {[%emt 0:01:30]} Be7 {[%emt 0:03:30]} 9. exd5 {[%emt 0:02:30]} Nxd5 {[%emt 0:01:30]} 10. Bxe7 {[%emt 0:01:30]} Qxe7 {[%emt 0:02:30]} 11. Qd2 {[%emt 0:02:30]} O-O {[%emt 0:01:30]} 12. Bxc6 {[%emt 0:00:30]} Bxc6 {[%emt 0:00:00]} 13. Nxc6 {[%emt 0:00:30]} bxc6 {[%emt 0:00:00]} 14. O-O {[%emt 0:00:30]} Rab8 {[%emt 0:00:30]} 15. Rab1 {[%emt 0:01:30]} Rfd8 {[%emt 0:01:30]} 16. Rfe1 {[%emt 0:06:30]} Qh4 {[%emt 0:08:30]} 17. Ne4 {[%emt 0:03:30]} Nf6 {[%emt 0:01:30]} 18. Nxf6+ {[%emt 0:01:30]} Qxf6 {[%emt 0:00:30]} 19. Qc1 {[%emt 0:00:30]} h6 {[%emt 0:03:30]} 20. h3 {[%emt 0:00:30]} Rd7 {[%emt 0:03:30]} 21. c3 {[%emt 0:03:30]} Rbd8 {[%emt 0:02:30]} 22. Qe3 {[%emt 0:00:30]} Qf5 {[%emt 0:02:30]} 23. Rbc1 {[%emt 0:01:30]} Qb5 {[%emt 0:11:30]} 24. Rc2 {[%emt 0:03:30]} c5 {[%emt 0:07:30]} 25. c4 {[%emt 0:04:30]} Qa4 {[%emt 0:02:30]} 26. Qc1 {[%emt 0:02:30]} Rd4 {[%emt 0:00:30]} 27. Kh2 {[%emt 0:01:30]} Qa6 {[%emt 0:00:30]} 28. g3 {[%emt 0:00:30]} Qc6 {[%emt 0:07:30]} 29. Qe3 {[%emt 0:01:30]} Rd3 {[%emt 0:00:30]} 30. Qe4 {[%emt 0:00:30]} Qa4 {[%emt 0:00:30]} 31. Rec1 {[%emt 0:01:30]} Qd7 {[%emt 0:04:30]} 32. Re1 {[%emt 0:01:30]} Rd4 {[%emt 0:00:30]} 33. Qe5 {[%emt 0:00:30]} Qa4 {[%emt 0:01:30]} 34. Rec1 {[%emt 0:02:30]} Qc6 {[%emt 0:00:00]} 35. Qe2 {[%emt 0:00:00]} Rd3 {[%emt 0:02:00]} 36. Re1 {[%emt 0:01:00]} R8d4 {[%emt 0:00:30]} 37. Kg1 {[%emt 0:01:30]} Qd6 {[%emt 0:01:30]} 38. Kg2 {[%emt 0:01:30]} Rd2 {[%emt 0:05:30]} 39. Rxd2 {[%emt 0:00:30]} Rxd2 {[%emt 0:00:30]} 40. Qe4 {[%emt 0:00:30]} Rxb2 {[%emt 0:00:30]} 41. Qa8+ {[%emt 0:00:30]} Qb8 {[%emt 0:01:30]} 42. Qxb8+ {[%emt 0:01:30]} Rxb8 {[%emt 0:00:30]} 43. Re5 {[%emt 0:00:00]} Rc8 {[%emt 0:01:30]} 44. Kf3 {[%emt 0:00:00]} Kf8 {[%emt 0:00:00]} 45. Ke3 {[%emt 0:00:30]} Ke7 {[%emt 0:00:00]} 46. Kd3 {[%emt 0:00:00]} f6 {[%emt 0:00:30]} 47. Re2 {[%emt 0:00:00]} Rb8 {[%emt 0:00:30]} 48. Kc2 {[%emt 0:00:30]} a5 {[%emt 0:00:00]} 49. Rd2 {[%emt 0:00:30]} a4 {[%emt 0:00:00]} 50. Rd3 {[%emt 0:00:00]} Rd8 {[%emt 0:00:30]} 51. Re3 {[%emt 0:01:00]} Rd4 {[%emt 0:00:00]} 52. Rc3 {[%emt 0:00:00]} h5 {[%emt 0:00:00]} 53. h4 {[%emt 0:01:00]} g5 {[%emt 0:00:30]} 54. hxg5 {[%emt 0:00:00]} fxg5 {[%emt 0:00:30]} 55. Kc1 {[%emt 0:00:00]} e5 {[%emt 0:00:30]} 56. Kb2 {[%emt 0:00:30]} Rd2+ {[%emt 0:00:30]} 57. Rc2 {[%emt 0:00:30]} Rxc2+ {[%emt 0:00:30]} 58. Kxc2 {[%emt 0:00:30]} h4 {[%emt 0:00:00]} 0-1

[Event "Turkish Club Cup 2019"]
[Site "Konya"]
[Date "2019.07.16"]
[Round "1"]
[White "Ipek, Yunus Enes"]
[Black "Yasin, Hur"]
[Result "0-1"]
[ECO "A00"]
[WhiteElo "1638"]
[BlackElo "1953"]
[Annotator "NA"]
[PlyCount "140"]
[EventDate "2019.07.16"]
[EventType "team-tourn"]
[EventCountry "TUR"]
[SourceTitle "playchess.com"]
[Source "ChessBase"]
[SourceQuality "1"]
[TimeControl "5400+30"]

1. g4 {[%emt 0:00:30]} d5 {[%emt 0:01:30]} 2. Bg2 {[%emt 0:00:00]} c6 {[%emt 0:00:30]} 3. h3 {[%emt 0:00:00]} e5 {[%emt 0:00:30]} 4. d4 {[%emt 0:00:30]} e4 {[%emt 0:00:30]} 5. c4 {[%emt 0:00:30]} Be6 {[%emt 0:07:30]} 6. Bf4 {[%emt 0:07:30]} Bb4+ {[%emt 0:02:30]} 7. Nc3 {[%emt 0:00:30]} Qa5 {[%emt 0:02:30]} 8. Qc2 {[%emt 0:01:30]} f5 {[%emt 0:08:30]} 9. cxd5 {[%emt 0:02:30]} cxd5 {[%emt 0:01:30]} 10. gxf5 {[%emt 0:00:30]} Bxf5 {[%emt 0:00:30]} 11. e3 {[%emt 0:00:30]} Nd7 {[%emt 0:05:30]} 12. Nge2 {[%emt 0:03:30]} Ngf6 {[%emt 0:08:30]} 13. O-O {[%emt 0:02:30]} O-O {[%emt 0:02:30]} 14. a3 {[%emt 0:01:30]} Be7 {[%emt 0:00:30]} 15. b4 {[%emt 0:12:30]} Qa6 {[%emt 0:01:30]} 16. Qa2 {[%emt 0:11:30]} Qe6 {[%emt 0:01:30]} 17. Bg3 {[%emt 0:13:30]} g5 {[%emt 0:00:30]} 18. Nb5 {[%emt 0:08:30]} Ne8 {[%emt 0:09:30]} 19. Nec3 {[%emt 0:10:30]} Nb6 {[%emt 0:00:30]} 20. f3 {[%emt 0:08:28]} a6 {[%emt 0:06:30]} 21. fxe4 {[%emt 0:02:13]} axb5 {[%emt 0:01:30]} 22. Nxd5 {[%emt 0:02:22]} Nxd5 {[%emt 0:08:30]} 23. exf5 {[%emt 0:01:26]} Qxe3+ {[%emt 0:01:30]} 24. Bf2 {[%emt 0:00:14]} Qf4 {[%emt 0:00:30]} 25. Qxd5+ {[%emt 0:01:29]} Kh8 {[%emt 0:02:30]} 26. Qxb7 {[%emt 0:00:38]} Bd6 {[%emt 0:00:30]} 27. Rfe1 {[%emt 0:01:21]} Rb8 {[%emt 0:06:29]} 28. Qf3 {[%emt 0:00:58]} Rxf5 {[%emt 0:09:38]} 29. Qxf4 {[%emt 0:00:07]} Bxf4 {[%emt 0:00:11]} 30. Be3 {[%emt 0:02:29]} Nd6 {[%emt 0:02:19]} 31. Bxf4 {[%emt 0:00:45]} gxf4 {[%emt 0:00:34]} 32. Re5 {[%emt 0:00:23]} Rg8 {[%emt 0:01:49]} 33. Kf2 {[%emt 0:01:04]} Rf6 {[%emt 0:02:49]} 34. Rc1 {[%emt 0:01:25]} Rg3 {[%emt 0:02:32]} 35. d5 {[%emt 0:01:12]} Rxa3 {[%emt 0:00:28]} 36. Re6 {[%emt 0:00:31]} Rxe6 {[%emt 0:00:44]} 37. dxe6 {[%emt 0:00:05]} Re3 {[%emt 0:00:41]} 38. Re1 {[%emt 0:00:07]} Rxe1 {[%emt 0:00:22]} 39. Kxe1 {[%emt 0:00:02]} Kg7 {[%emt 0:00:00]} 40. Kf2 {[%emt 0:00:47]} Kf6 {[%emt 0:01:52]} 41. Bd5 {[%emt 0:01:09]} Ke5 {[%emt 0:00:37]} 42. Ba2 {[%emt 0:00:08]} Nf5 {[%emt 0:00:02]} 43. Kf3 {[%emt 0:00:23]} h5 {[%emt 0:00:16]} 44. Kf2 {[%emt 0:00:43]} Ne7 {[%emt 0:00:19]} 45. Kg2 {[%emt 0:00:38]} Nc6 {[%emt 0:00:11]} 46. Kf3 {[%emt 0:00:20]} Nd4+ {[%emt 0:00:08]} 47. Kf2 {[%emt 0:00:20]} Nxe6 {[%emt 0:00:06]} 48. Kf3 {[%emt 0:00:40]} Nd4+ {[%emt 0:00:08]} 49. Kf2 {[%emt 0:00:00]} h4 {[%emt 0:00:49]} 50. Bf7 {[%emt 0:00:00]} Kf6 {[%emt 0:00:40]} 51. Be8 {[%emt 0:00:07]} Ke6 {[%emt 0:00:14]} 52. Ke1 {[%emt 0:01:17]} Kd5 {[%emt 0:00:08]} 53. Bf7+ {[%emt 0:00:38]} Ke4 {[%emt 0:00:04]} 54. Be8 {[%emt 0:00:52]} Ke3 {[%emt 0:00:11]} 55. Kf1 {[%emt 0:00:00]} f3 {[%emt 0:00:07]} 56. Bd7 {[%emt 0:00:21]} f2 {[%emt 0:01:38]} 57. Be8 {[%emt 0:00:35]} Nc2 {[%emt 0:01:34]} 58. Bxb5 {[%emt 0:00:30]} Nxb4 {[%emt 0:00:09]} 59. Bc4 {[%emt 0:00:10]} Nc6 {[%emt 0:00:41]} 60. Bb5 {[%emt 0:00:53]} Nd4 {[%emt 0:00:10]} 61. Ba6 {[%emt 0:00:05]} Kf3 {[%emt 0:00:19]} 62. Bb7+ {[%emt 0:03:58]} Kg3 {[%emt 0:00:37]} 63. Ba6 {[%emt 0:00:07]} Nf3 {[%emt 0:00:00]} 64. Ke2 {[%emt 0:00:13]} Nh2 {[%emt 0:00:19]} 65. Ke3 {[%emt 0:00:20]} f1=Q {[%emt 0:00:40]} 66. Bxf1 {[%emt 0:00:03]} Nxf1+ {[%emt 0:00:12]} 67. Ke2 {[%emt 0:00:30]} Nh2 {[%emt 0:00:09]} 68. Ke3 {[%emt 0:00:00]} Nf3 {[%emt 0:00:32]} 69. Ke2 {[%emt 0:00:00]} Ng1+ {[%emt 0:00:05]} 70. Kf1 {[%emt 0:00:01]} Nxh3 {[%emt 0:00:00]} 0-1

[Event "Turkish Club Cup 2019"]
[Site "Konya"]
[Date "2019.07.16"]
[Round "1"]
[White "Mermer, Yunus"]
[Black "Demirbas, Emre"]
[Result "0-1"]
[ECO "D00"]
[WhiteElo "1625"]
[BlackElo "1913"]
[Annotator "NA"]
[PlyCount "62"]
[EventDate "2019.07.16"]
[EventType "team-tourn"]
[EventCountry "TUR"]
[SourceTitle "playchess.com"]
[Source "ChessBase"]
[SourceQuality "1"]
[TimeControl "5400+30"]

1. d4 {[%emt 0:00:30]} d5 {[%emt 0:00:30]} 2. Nc3 {[%emt 0:00:00]} g6 {[%emt 0:00:30]} 3. Bg5 {[%emt 0:02:00]} Bg7 {[%emt 0:00:30]} 4. e3 {[%emt 0:02:30]} Nf6 {[%emt 0:03:30]} 5. Be2 {[%emt 0:00:30]} c5 {[%emt 0:03:30]} 6. Nf3 {[%emt 0:05:30]} Ne4 {[%emt 0:05:30]} 7. Bf4 {[%emt 0:09:30]} Qa5 {[%emt 0:03:30]} 8. O-O {[%emt 0:07:30]} Nxc3 {[%emt 0:02:30]} 9. bxc3 {[%emt 0:00:30]} O-O {[%emt 0:01:30]} 10. Qd2 {[%emt 0:03:30]} Nd7 {[%emt 0:02:30]} 11. Rfd1 {[%emt 0:05:30]} Nf6 {[%emt 0:00:30]} 12. c4 {[%emt 0:03:30]} Qa4 {[%emt 0:03:30]} 13. cxd5 {[%emt 0:07:30]} Nxd5 {[%emt 0:05:30]} 14. Be5 {[%emt 0:01:30]} Nf6 {[%emt 0:10:30]} 15. c3 {[%emt 0:05:30]} c4 {[%emt 0:10:30]} 16. Rdc1 {[%emt 0:03:30]} Be6 {[%emt 0:04:30]} 17. Qc2 {[%emt 0:01:30]} Qc6 {[%emt 0:01:30]} 18. Nd2 {[%emt 0:03:30]} Rac8 {[%emt 0:08:30]} 19. e4 {[%emt 0:05:30]} Qa6 {[%emt 0:04:30]} 20. f3 {[%emt 0:03:30]} Rfd8 {[%emt 0:02:30]} 21. d5 {[%emt 0:05:30]} Nxd5 {[%emt 0:00:30]} 22. Bxg7 {[%emt 0:03:05]} Ne3 {[%emt 0:00:30]} 23. Qb2 {[%emt 0:00:41]} Kxg7 {[%emt 0:01:30]} 24. Kf2 {[%emt 0:00:53]} Qd6 {[%emt 0:01:30]} 25. Kxe3 {[%emt 0:06:50]} Qc5+ {[%emt 0:00:30]} 26. Kf4 {[%emt 0:00:05]} Qf2 {[%emt 0:00:30]} 27. Nb1 {[%emt 0:01:05]} Rc5 {[%emt 0:02:30]} 28. h4 {[%emt 0:02:29]} h6 {[%emt 0:00:00]} 29. e5 {[%emt 0:03:46]} g5+ {[%emt 0:00:00]} 30. Ke4 {[%emt 0:01:08]} Rxe5+ {[%emt 0:00:00]} 31. Kxe5 {[%emt 0:00:23]} Qe3# {[%emt 0:00:00]} 0-1

[Event "Turkish Club Cup 2019"]
[Site "Konya"]
[Date "2019.07.16"]
[Round "1"]
[White "Agurlu, Fatih Selami"]
[Black "Cetinkaya, Vedat Ali"]
[Result "0-1"]
[ECO "B17"]
[WhiteElo "1592"]
[BlackElo "2074"]
[Annotator "NA"]
[PlyCount "94"]
[EventDate "2019.07.16"]
[EventType "team-tourn"]
[EventCountry "TUR"]
[SourceTitle "playchess.com"]
[Source "ChessBase"]
[SourceQuality "1"]
[TimeControl "5400+30"]

1. e4 {[%emt 0:00:30]} c6 {[%emt 0:00:30]} 2. d4 {[%emt 0:00:30]} d5 {[%emt 0:00:00]} 3. Nc3 {[%emt 0:00:30]} dxe4 {[%emt 0:00:00]} 4. Nxe4 {[%emt 0:01:30]} Nd7 {[%emt 0:00:30]} 5. Qe2 {[%emt 0:01:30]} Ndf6 {[%emt 0:02:30]} 6. Nxf6+ {[%emt 0:07:30]} Nxf6 {[%emt 0:00:30]} 7. Be3 {[%emt 0:00:30]} Bf5 {[%emt 0:03:30]} 8. Qc4 {[%emt 0:10:30]} g6 {[%emt 0:09:30]} 9. Bd3 {[%emt 0:03:30]} Be6 {[%emt 0:02:30]} 10. Qc3 {[%emt 0:06:30]} Bg7 {[%emt 0:07:30]} 11. Ne2 {[%emt 0:02:30]} Nd5 {[%emt 0:06:30]} 12. Qd2 {[%emt 0:00:30]} Nxe3 {[%emt 0:05:30]} 13. Qxe3 {[%emt 0:13:30]} O-O {[%emt 0:05:30]} 14. O-O {[%emt 0:07:30]} Qd6 {[%emt 0:02:30]} 15. c3 {[%emt 0:04:30]} Rad8 {[%emt 0:00:30]} 16. Rfd1 {[%emt 0:03:30]} Rfe8 {[%emt 0:00:30]} 17. h4 {[%emt 0:09:30]} Bg4 {[%emt 0:10:30]} 18. f3 {[%emt 0:04:30]} Bc8 {[%emt 0:00:30]} 19. Bc4 {[%emt 0:00:57]} e6 {[%emt 0:09:30]} 20. f4 {[%emt 0:02:46]} Bf6 {[%emt 0:03:30]} 21. g3 {[%emt 0:01:07]} b5 {[%emt 0:00:00]} 22. Bb3 {[%emt 0:00:32]} Bb7 {[%emt 0:00:00]} 23. Qd3 {[%emt 0:11:10]} a6 {[%emt 0:01:30]} 24. Qf3 {[%emt 0:03:21]} Qc7 {[%emt 0:02:30]} 25. Qf2 {[%emt 0:00:10]} Be7 {[%emt 0:00:30]} 26. Kh2 {[%emt 0:00:18]} c5 {[%emt 0:02:30]} 27. Bc2 {[%emt 0:00:27]} Qc6 {[%emt 0:01:30]} 28. Rd2 {[%emt 0:01:17]} Rd7 {[%emt 0:01:30]} 29. Rad1 {[%emt 0:00:33]} Red8 {[%emt 0:00:30]} 30. Nc1 {[%emt 0:01:38]} cxd4 {[%emt 0:02:30]} 31. cxd4 {[%emt 0:00:48]} Rxd4 {[%emt 0:00:30]} 32. Nd3 {[%emt 0:01:20]} Bc5 {[%emt 0:04:54]} 33. Qf1 {[%emt 0:00:27]} Bb4 {[%emt 0:01:56]} 34. Re2 {[%emt 0:00:33]} Ba5 {[%emt 0:01:29]} 35. b4 {[%emt 0:00:35]} Bb6 {[%emt 0:00:22]} 36. Ne5 {[%emt 0:00:21]} Qd6 {[%emt 0:02:42]} 37. Rde1 {[%emt 0:00:39]} Rd2 {[%emt 0:00:51]} 38. Bb3 {[%emt 0:00:21]} Qxb4 {[%emt 0:01:18]} 39. Nxf7 {[%emt 0:00:38]} Kxf7 {[%emt 0:00:15]} 40. Kh3 {[%emt 0:00:24]} Qc5 {[%emt 0:03:46]} 41. Rxe6 {[%emt 0:00:35]} Bc8 {[%emt 0:01:11]} 42. f5 {[%emt 0:00:21]} Kg7 {[%emt 0:02:23]} 43. Re7+ {[%emt 0:00:20]} Kh8 {[%emt 0:01:05]} 44. Re8+ {[%emt 0:00:50]} Rxe8 {[%emt 0:00:07]} 45. Rxe8+ {[%emt 0:00:21]} Kg7 {[%emt 0:00:02]} 46. Qa1+ {[%emt 0:00:00]} Kh6 {[%emt 0:00:47]} 47. Rxc8 {[%emt 0:01:01]} Qxf5+ {[%emt 0:00:19]} 0-1

[Event "Turkish Club Cup 2019"]
[Site "Konya"]
[Date "2019.07.16"]
[Round "1"]
[White "Pulat, Gulce"]
[Black "Gokcek, Kursat Bugra"]
[Result "0-1"]
[ECO "B17"]
[WhiteElo "1568"]
[BlackElo "2150"]
[Annotator "ChessBase"]
[PlyCount "88"]
[EventDate "2019.07.16"]
[EventType "team-tourn"]
[EventCountry "TUR"]
[SourceTitle "playchess.com"]
[Source "ChessBase"]
[SourceQuality "1"]
[TimeControl "5400+30"]

1. e4 {[%emt 0:00:30]} c6 {[%emt 0:00:30]} 2. Nc3 {[%emt 0:00:30]} d5 {[%emt 0:00:00]} 3. Nf3 {[%emt 0:00:00]} dxe4 {[%emt 0:00:00]} 4. Nxe4 {[%emt 0:00:00]} Nf6 {[%emt 0:00:00]} 5. Qe2 {[%emt 0:02:30]} Be6 {[%emt 0:16:00]} 6. Nc5 {[%emt 0:23:30]} Bc8 {[%emt 0:11:30]} 7. d4 {[%emt 0:05:30]} Nbd7 {[%emt 0:04:30]} 8. Nxd7 {[%emt 0:01:30]} Bxd7 {[%emt 0:00:30]} 9. Bg5 {[%emt 0:05:30]} Bg4 {[%emt 0:04:30]} 10. O-O-O {[%emt 0:05:30]} e6 {[%emt 0:13:30]} 11. h3 {[%emt 0:09:30]} Bxf3 {[%emt 0:04:30]} 12. Qxf3 {[%emt 0:00:30]} Be7 {[%emt 0:00:00]} 13. Bc4 {[%emt 0:07:30]} O-O {[%emt 0:10:00]} 14. h4 {[%emt 0:06:30]} a5 {[%emt 0:01:30]} 15. g4 {[%emt 0:05:30]} Nd5 {[%emt 0:01:30]} 16. Bxe7 {[%emt 0:06:13]} Qxe7 {[%emt 0:01:30]} 17. Rde1 {[%emt 0:01:58]} Qb4 {[%emt 0:03:30]} 18. Qb3 {[%emt 0:05:53]} b5 {[%emt 0:01:30]} 19. Bxd5 {[%emt 0:01:21]} cxd5 {[%emt 0:00:30]} 20. Rd1 {[%emt 0:05:36]} Qd6 {[%emt 0:01:30]} 21. h5 {[%emt 0:01:58]} h6 {[%emt 0:09:31]} 22. Qe3 {[%emt 0:00:46]} Qe7 {[%emt 0:05:13]} 23. f4 {[%emt 0:01:18]} Qf6 {[%emt 0:01:53]} 24. g5 {[%emt 0:00:48]} Qf5 {[%emt 0:00:30]} 25. gxh6 {[%emt 0:00:30]} gxh6 {[%emt 0:00:01]} 26. Rde1 {[%emt 0:00:06]} Rac8 {[%emt 0:01:51]} 27. Rh2 {[%emt 0:00:31]} Kh7 {[%emt 0:00:46]} 28. Qe5 {[%emt 0:00:31]} Qg4 {[%emt 0:01:42]} 29. Rhh1 {[%emt 0:00:05]} Rg8 {[%emt 0:01:18]} 30. Qe3 {[%emt 0:01:37]} Qf5 {[%emt 0:00:20]} 31. Qf2 {[%emt 0:00:24]} Rg4 {[%emt 0:00:41]} 32. Re5 {[%emt 0:01:12]} Qxf4+ {[%emt 0:00:41]} 33. Qxf4 {[%emt 0:00:30]} Rxf4 {[%emt 0:00:00]} 34. Rd1 {[%emt 0:00:35]} Rc4 {[%emt 0:00:35]} 35. c3 {[%emt 0:00:22]} b4 {[%emt 0:00:03]} 36. Kc2 {[%emt 0:00:05]} Rf2+ {[%emt 0:01:06]} 37. Rd2 {[%emt 0:00:56]} Rxd2+ {[%emt 0:00:30]} 38. Kxd2 {[%emt 0:00:30]} bxc3+ {[%emt 0:00:30]} 39. bxc3 {[%emt 0:00:00]} Ra4 {[%emt 0:00:00]} 40. Kc2 {[%emt 0:00:43]} Rxa2+ {[%emt 0:00:00]} 41. Kb3 {[%emt 0:00:00]} Rh2 {[%emt 0:00:00]} 42. Ka4 {[%emt 0:01:12]} Rh3 {[%emt 0:00:00]} 43. c4 {[%emt 0:00:20]} dxc4 {[%emt 0:00:07]} 44. Rxa5 {[%emt 0:00:28]} Rd3 {[%emt 0:00:11]} 0-1

[Event "Turkish Club Cup 2019"]
[Site "Konya"]
[Date "2019.07.16"]
[Round "1"]
[White "Alak, Agdar"]
[Black "Kazik, Oguz Kagan"]
[Result "1/2-1/2"]
[ECO "E15"]
[WhiteElo "1528"]
[BlackElo "1706"]
[Annotator "NA"]
[PlyCount "142"]
[EventDate "2019.07.16"]
[EventType "team-tourn"]
[EventCountry "TUR"]
[SourceTitle "playchess.com"]
[Source "ChessBase"]
[SourceQuality "1"]
[TimeControl "5400+30"]

1. d4 {[%emt 0:00:30]} Nf6 {[%emt 0:00:30]} 2. c4 {[%emt 0:00:00]} e6 {[%emt 0:00:30]} 3. Nf3 {[%emt 0:00:00]} b6 {[%emt 0:00:30]} 4. g3 {[%emt 0:00:30]} Ba6 {[%emt 0:00:30]} 5. Qc2 {[%emt 0:00:30]} Bb4+ {[%emt 0:00:30]} 6. Bd2 {[%emt 0:00:30]} Be7 {[%emt 0:00:30]} 7. Bg2 {[%emt 0:00:30]} O-O {[%emt 0:00:30]} 8. O-O {[%emt 0:00:30]} c6 {[%emt 0:05:30]} 9. Re1 {[%emt 0:02:30]} d5 {[%emt 0:04:30]} 10. Ne5 {[%emt 0:00:00]} Nfd7 {[%emt 0:00:30]} 11. Nxd7 {[%emt 0:02:00]} Nxd7 {[%emt 0:00:30]} 12. cxd5 {[%emt 0:00:00]} cxd5 {[%emt 0:00:30]} 13. Qa4 {[%emt 0:00:00]} Bb7 {[%emt 0:02:30]} 14. Bb4 {[%emt 0:00:30]} Nf6 {[%emt 0:05:30]} 15. Nd2 {[%emt 0:00:30]} Bxb4 {[%emt 0:05:30]} 16. Qxb4 {[%emt 0:00:30]} Rc8 {[%emt 0:02:30]} 17. Rac1 {[%emt 0:01:30]} Qd7 {[%emt 0:04:30]} 18. Nb3 {[%emt 0:06:30]} Ba6 {[%emt 0:03:30]} 19. e3 {[%emt 0:02:30]} h6 {[%emt 0:05:30]} 20. a3 {[%emt 0:02:30]} Rxc1 {[%emt 0:01:30]} 21. Rxc1 {[%emt 0:00:30]} Rc8 {[%emt 0:00:00]} 22. Rxc8+ {[%emt 0:01:30]} Qxc8 {[%emt 0:02:00]} 23. Qc3 {[%emt 0:00:30]} Qd7 {[%emt 0:01:30]} 24. Nd2 {[%emt 0:00:30]} Ne8 {[%emt 0:03:30]} 25. e4 {[%emt 0:03:30]} dxe4 {[%emt 0:01:30]} 26. Bxe4 {[%emt 0:00:30]} Nc7 {[%emt 0:00:30]} 27. Qc6 {[%emt 0:03:30]} Qxc6 {[%emt 0:07:30]} 28. Bxc6 {[%emt 0:00:30]} Kf8 {[%emt 0:00:00]} 29. f4 {[%emt 0:00:00]} Ke7 {[%emt 0:00:00]} 30. Kf2 {[%emt 0:00:00]} Kd6 {[%emt 0:00:30]} 31. Be4 {[%emt 0:00:30]} Ne8 {[%emt 0:02:30]} 32. Ke3 {[%emt 0:01:30]} Nf6 {[%emt 0:00:30]} 33. Bf3 {[%emt 0:00:00]} Nd5+ {[%emt 0:04:30]} 34. Bxd5 {[%emt 0:02:00]} Kxd5 {[%emt 0:00:30]} 35. b3 {[%emt 0:00:30]} f6 {[%emt 0:03:30]} 36. Nb1 {[%emt 0:02:30]} e5 {[%emt 0:02:30]} 37. Nc3+ {[%emt 0:00:30]} Kd6 {[%emt 0:00:30]} 38. dxe5+ {[%emt 0:06:30]} fxe5 {[%emt 0:00:30]} 39. f5 {[%emt 0:00:30]} h5 {[%emt 0:03:30]} 40. Ne4+ {[%emt 0:01:30]} Ke7 {[%emt 0:00:00]} 41. h3 {[%emt 0:00:30]} Bf1 {[%emt 0:00:00]} 42. Nf2 {[%emt 0:03:30]} Bg2 {[%emt 0:04:30]} 43. g4 {[%emt 0:01:30]} h4 {[%emt 0:03:30]} 44. Kd3 {[%emt 0:08:30]} g6 {[%emt 0:03:48]} 45. fxg6 {[%emt 0:02:30]} Kf6 {[%emt 0:00:04]} 46. g7 {[%emt 0:00:00]} Kxg7 {[%emt 0:01:02]} 47. Ke3 {[%emt 0:01:00]} Kg6 {[%emt 0:00:20]} 48. b4 {[%emt 0:00:30]} Kh6 {[%emt 0:00:18]} 49. Nd3 {[%emt 0:02:30]} Bxh3 {[%emt 0:00:50]} 50. Nxe5 {[%emt 0:00:30]} Kg5 {[%emt 0:01:54]} 51. Kf3 {[%emt 0:00:30]} Bf1 {[%emt 0:00:03]} 52. Nf7+ {[%emt 0:05:30]} Kg6 {[%emt 0:03:32]} 53. Nd6 {[%emt 0:00:30]} Kg5 {[%emt 0:02:37]} 54. Ne4+ {[%emt 0:00:30]} Kg6 {[%emt 0:00:08]} 55. Kf4 {[%emt 0:00:30]} a5 {[%emt 0:01:39]} 56. Nd2 {[%emt 0:01:30]} Be2 {[%emt 0:01:05]} 57. Ne4 {[%emt 0:01:30]} h3 {[%emt 0:02:29]} 58. Kg3 {[%emt 0:00:30]} h2 {[%emt 0:00:18]} 59. Nf2 {[%emt 0:01:30]} Kg5 {[%emt 0:00:04]} 60. Nh3+ {[%emt 0:02:30]} Kf6 {[%emt 0:00:46]} 61. g5+ {[%emt 0:01:30]} Kf5 {[%emt 0:00:01]} 62. Kxh2 {[%emt 0:00:30]} Bg4 {[%emt 0:00:09]} 63. g6 {[%emt 0:00:30]} Kxg6 {[%emt 0:00:04]} 64. Nf4+ {[%emt 0:00:30]} Kf5 {[%emt 0:00:05]} 65. Kg3 {[%emt 0:00:30]} axb4 {[%emt 0:00:30]} 66. axb4 {[%emt 0:00:30]} Bd1 {[%emt 0:00:00]} 67. Nd5 {[%emt 0:00:00]} Bb3 {[%emt 0:00:30]} 68. Nxb6 {[%emt 0:00:00]} Ke5 {[%emt 0:00:00]} 69. Kf3 {[%emt 0:02:30]} Kd4 {[%emt 0:00:00]} 70. Kf4 {[%emt 0:00:30]} Kc3 {[%emt 0:00:00]} 71. b5 {[%emt 0:00:30]} Kb4 {[%emt 0:00:00]} 1/2-1/2

[Event "Turkish Club Cup 2019"]
[Site "Konya"]
[Date "2019.07.16"]
[Round "1"]
[White "Postoglu, Gulden"]
[Black "Haktanirlar, Zeren"]
[Result "1-0"]
[ECO "B13"]
[WhiteElo "1518"]
[BlackElo "1294"]
[Annotator "NA"]
[PlyCount "71"]
[EventDate "2019.07.16"]
[EventType "team-tourn"]
[EventCountry "TUR"]
[SourceTitle "playchess.com"]
[Source "ChessBase"]
[SourceQuality "1"]
[TimeControl "5400+30"]

1. e4 {[%emt 0:00:30]} c6 {[%emt 0:00:30]} 2. d4 {[%emt 0:00:00]} d5 {[%emt 0:00:30]} 3. exd5 {[%emt 0:00:00]} cxd5 {[%emt 0:00:30]} 4. Bd3 {[%emt 0:00:30]} Nc6 {[%emt 0:00:30]} 5. c3 {[%emt 0:00:00]} Nf6 {[%emt 0:00:00]} 6. Bf4 {[%emt 0:00:00]} Bg4 {[%emt 0:02:00]} 7. Nf3 {[%emt 0:03:30]} e6 {[%emt 0:01:30]} 8. Nbd2 {[%emt 0:00:30]} Bd6 {[%emt 0:02:30]} 9. Bxd6 {[%emt 0:00:00]} Qxd6 {[%emt 0:00:30]} 10. O-O {[%emt 0:00:00]} O-O {[%emt 0:01:30]} 11. Qc2 {[%emt 0:04:30]} Rac8 {[%emt 0:00:30]} 12. a3 {[%emt 0:01:30]} Rfe8 {[%emt 0:03:30]} 13. Rae1 {[%emt 0:00:30]} a6 {[%emt 0:11:30]} 14. Qb1 {[%emt 0:00:30]} b5 {[%emt 0:03:30]} 15. Ne5 {[%emt 0:00:30]} Bh5 {[%emt 0:00:30]} 16. f4 {[%emt 0:02:30]} Bg6 {[%emt 0:03:30]} 17. Nxg6 {[%emt 0:03:30]} hxg6 {[%emt 0:01:30]} 18. Re3 {[%emt 0:01:30]} Nh5 {[%emt 0:02:30]} 19. g3 {[%emt 0:01:30]} Re7 {[%emt 0:04:30]} 20. Nf3 {[%emt 0:01:30]} Na5 {[%emt 0:04:30]} 21. Ne5 {[%emt 0:05:30]} Nc4 {[%emt 0:01:30]} 22. Re2 {[%emt 0:00:00]} Nf6 {[%emt 0:02:30]} 23. Qe1 {[%emt 0:03:00]} Qb6 {[%emt 0:08:30]} 24. g4 {[%emt 0:01:30]} Nxe5 {[%emt 0:00:30]} 25. fxe5 {[%emt 0:00:30]} Nxg4 {[%emt 0:01:30]} 26. Qh4 {[%emt 0:00:30]} Qd8 {[%emt 0:11:30]} 27. Qxg4 {[%emt 0:00:30]} Rb7 {[%emt 0:02:30]} 28. Re3 {[%emt 0:00:30]} g5 {[%emt 0:05:30]} 29. Rh3 {[%emt 0:01:30]} Rc6 {[%emt 0:04:30]} 30. Rh5 {[%emt 0:02:30]} f5 {[%emt 0:04:58]} 31. Qxg5 {[%emt 0:01:30]} Qxg5+ {[%emt 0:00:56]} 32. Rxg5 {[%emt 0:00:30]} a5 {[%emt 0:00:09]} 33. Rc1 {[%emt 0:01:30]} b4 {[%emt 0:00:55]} 34. axb4 {[%emt 0:00:30]} Rxb4 {[%emt 0:00:47]} 35. Rc2 {[%emt 0:02:30]} Rb3 {[%emt 0:01:34]} 36. Rg6 {[%emt 0:01:30]} 1-0